Cogmind - Beta 16 @@@ ROGUE MODE // 2025.10.25 @ 18:55:28 Player: the Result: Destroyed by OU-KTW(R) with Subdweller Machine Gun Performance ------------- Evolutions (0) 0 Regions Visited (2) 400 Robots Destroyed (17) 85 Value Destroyed (338) 338 Prototype IDs (7) 140 Alien Tech Used (0) 0 Bonus (0) 0 TOTAL SCORE: 963 Bonus ------- None Cogmind --------- Core Integrity 0/250 Matter 255/300 Energy 253/265 System Corruption 0% Temperature Warning (342) Movement Treading (160) Location -10/Subcaves Parts ------- > --- POWER (1) -------- Improved Ion Engine > --- PROPULSION (2) --- Improved Treads > --- UTILITY (2) ------ (None) > --- WEAPON (2) ------- Beam Cannon Beam Cannon > --- INVENTORY (5) ---- Improved Treads Improved Treads Seismic Detector Assault Rifle Assault Rifle Peak State ------------ > --- POWER ------------ Light Nuclear Core > --- PROPULSION ------- Light Treads Light Treads > --- UTILITY ---------- High-capacity Storage Unit Seismic Detector > --- WEAPON ----------- Assault Rifle Assault Rifle > --- INVENTORY -------- Ion Engine Light Ion Engine Light Treads Light Treads Improved Treads Improved Treads Improved Treads Improved Treads Wheel Improved Heat Sink Subdweller Optics Beam Rifle Beam Rifle Beam Cannon Beam Cannon Beam Cannon Subdweller Beam Cannon Assault Rifle Assault Rifle Mining Laser [Rating: 12] Favorites ----------- Power Light Nuclear Core Engine Improved Ion Engine Power Core Light Nuclear Core Propulsion Light Treads Treads Light Treads Utility Seismic Detector Device Seismic Detector Storage High-capacity Storage Unit Protection Scrap Shield Weapon Assault Rifle Energy Cannon Beam Cannon Ballistic Gun Assault Rifle Special Weapon Mining Laser Build | -11 -10 -10 ------- Run | Yrd Mat Sub Slots Evolved . | . . . Power . | . . . Propulsion . | . . . Utility . | . . . Weapon . | . . . Parts Attached 21 | 7 8 6 Power 5 | 1 3 1 Engine 3 | 1 1 1 Core 2 | . 2 . Reactor . | . . . Propulsion 5 | 2 1 2 Treads 5 | 2 1 2 Leg . | . . . Wheel . | . . . Hover . | . . . Flight . | . . . Utility 4 | 2 1 1 Device 1 | 1 . . Storage 2 | 1 1 . Processor . | . . . Hackware . | . . . Protection 1 | . . 1 Artifact . | . . . Weapon 7 | 2 3 2 Energy Gun . | . . . Energy Cannon 4 | . 2 2 Ballistic Gun 2 | 2 . . Ballistic Cannon . | . . . Launcher . | . . . Special Weapon 1 | . 1 . Impact Weapon . | . . . Slashing Weapon . | . . . Piercing Weapon . | . . . Special Melee Weapon . | . . . Unidentified Prototypes . | . . . Parts Lost 5 | . . 5 Power 1 | . . 1 Propulsion 3 | . . 3 Utility 1 | . . 1 Weapon . | . . . Highest Loss Streak 4 | . . 4 To Critical Strikes 1 | . . 1 Average Backups 13 | 1 15 7 Power 1 | . 1 . Propulsion 4 | . 5 1 Utility . | . 1 . Weapon 6 | . 7 4 Tool/Special . | . . . Unused Backups 17 | . 6 11 Power 2 | . 1 1 Propulsion 6 | . 3 3 Utility 2 | . 1 1 Weapon 7 | . 1 6 Tool/Special . | . . . Average Slot Usage (%) 97 | . 100 75 Engine 4 | . 4 12 Core 9 | . 9 . Treads 27 | . 28 24 Device 13 | . 14 3 Storage 13 | . 14 3 Energy Cannon 2 | . . 24 Ballistic Gun 20 | . 22 . Special Weapon 4 | . 5 . Peak Build Rating 12 | 7 12 12 Average Rating 10 | 4 10 8 On Entrance 6 | . 7 12 Avg Prop Armor Cover (%) 17 | 17 . . Naked Turns 22 | . . 22 Heaviest Build 59 | 13 59 59 Greatest Support 46 | 40 40 46 Greatest Overweight (x) 1 | 1 1 1 Average Overweight (x) . | . . . Largest Inventory Capacity 20 | 8 20 20 Average Capacity 16 | 6 17 8 Most Carried 20 | 5 20 20 Average Carried 13 | 1 15 6 Final Capacity 20 | 8 20 5 Final Carried 20 | 5 20 5 Class Distribution -------------------- 100% | Mutant Dominant Class ---------------- Mutant | -10/Materials Mutant | -10/Subcaves Resources | -11 -10 -10 ----------- Run | Yrd Mat Sub Matter Collected 592 | 348 244 . Remotely . | . . . Salvage Created 700 | 183 362 155 Parts 37 | 16 11 10 Haulers Intercepted 2 | . 2 . Recyclers Shooed 1 | 1 . . Parts Field Recycled . | . . . Retrieved Matter . | . . . Parts Self-Destructed 2 | . . 2 Prevented . | . . . Parts Restored . | . . . Kills | -11 -10 -10 ------- Run | Yrd Mat Sub Combat Hostiles Destroyed 7 | . 3 4 Guns 3 | . 3 . Cannons 4 | . . 4 Classes Destroyed 5 | 2 3 . Tunneler 5 | 5 . . Hauler 2 | . 2 . Recycler 3 | 1 2 . Grunt 2 | . 2 . Subdweller 5 | . 1 4 Best Kill Streak 6 | 6 3 2 Combat Bots Only 2 | . 1 2 Max Kills in Single Turn 1 | 1 1 1 Gunslinging . | . . . Exploded . | . . . Melee . | . . . Uniques/NPCs Destroyed . | . . . Combat | -11 -10 -10 -------- Run | Yrd Mat Sub Hostile Shots Fired 84 | . 5 79 Missed 16 | . 3 13 Hits 68 | . 2 66 Projectile 68 | . 2 66 Critical Strikes 4 | . . 4 Damage Taken 1451 | . 26 1425 Core 251 | . . 251 Absorbed by Shields . | . . . Regen/Repaired (Parts) 13 | . 13 . Core Remaining (%) 100 | 100 . . Volleys Fired 64 | 13 35 16 Largest 2 | 2 2 2 Hottest 140 | 40 100 140 Shots Fired 115 | 26 57 32 Gun 70 | 26 44 . Cannon 32 | . . 32 Launcher . | . . . Special 13 | . 13 . Kinetic 70 | 26 44 . Thermal 45 | . 13 32 Explosive . | . . . Electromagnetic . | . . . Robot Hit Streak 19 | 4 11 19 Robot Miss Streak 2 | 1 2 2 Penetration Max . | . . . Secondary Targets . | . . . Shots Hit Robots 77 | 17 32 28 Core Hits 28 | 7 13 8 Critical Kills . | . . . Critical Parts Destroyed . | . . . Critical Strikes . | . . . Melee Attacks . | . . . Impact . | . . . Slashing . | . . . Piercing . | . . . Sneak Attacks . | . . . Combat Hostiles . | . . . Follow-up Attacks . | . . . Damage Inflicted 1207 | 222 443 542 Guns 637 | 222 415 . Cannons 530 | . . 530 Explosions . | . . . Melee . | . . . Ramming 40 | . 28 12 Kinetic 637 | 222 415 . Thermal 530 | . . 530 Explosive . | . . . Electromagnetic . | . . . Impact . | . . . Slashing . | . . . Piercing . | . . . Highest Corruption . | . . . Average Corruption . | . . . Corruption Purged . | . . . Corruption Blocked . | . . . Overload Shots . | . . . Overflow Damage . | . . . Projectiles . | . . . Explosions . | . . . Melee . | . . . Knockbacks . | . . . Impact . | . . . Kinetic . | . . . Secondary . | . . . Self-Inflicted Damage . | . . . Shots . | . . . Rammed 9 | . 3 6 Targets Rammed 9 | . 3 6 Kicked . | . . . Crushed . | . . . Highest Temperature 342 | . 140 342 Average Temperature 91 | . 50 141 Received Heat Transfer 732 | . 18 714 Siege Activations . | . . . Martial Activations . | . . . Shielding Activations . | . . . Robots Disrupted . | . . . Combat Hostiles . | . . . Robots Corrupted . | . . . Combat Hostiles . | . . . Parts Fried . | . . . Impact Corruptions . | . . . Robots Melted . | . . . Combat Hostiles . | . . . Parts Melted . | . . . Heat Transferred 962 | . . 962 Parts Sabotaged . | . . . Parts Stolen . | . . . Parts Stripped . | . . . Power Chain Reactions . | . . . Alert | -11 -10 -10 ------- Run | Yrd Mat Sub Maximum Alert Level . | . . . Low Security (%) 100 | 100 100 . Level 1 . | . . . Level 2 . | . . . Level 3 . | . . . Level 4 . | . . . Level 5 . | . . . High Security . | . . . Max Security . | . . . Peak Influence 65 | 10 65 . Initial . | . . . Average 2 | 1 2 . Influence Increases 186 | 30 156 . Destroy 0b10 Robot/C 40 | . 40 . Destroy 0b10 Robot/NC 50 | 30 20 . Destroy Leader 14 | . 14 . Successful Hack 57 | . 57 . Destroy Structure 10 | . 10 . Lose Combat Pursuer 15 | . 15 . Influence Decreases 186 | 30 156 . Time Decay 186 | 30 156 . Squads Dispatched 1 | . 1 . Investigation . | . . . Extermination . | . . . Reinforcement 1 | . 1 . Assault . | . . . Garrison . | . . . Intercept . | . . . Searches Triggered . | . . . Construction Impeded . | . . . Haulers Reinforced . | . . . Active Scanning Responses . | . . . Cargo Convoy Interrupts . | . . . Stealth | -11 -10 -10 --------- Run | Yrd Mat Sub Distress Signals 1 | . 1 . Communications Jammed . | . . . Distress Signals . | . . . Times Spotted 22 | . 5 17 Peak Tracking Total 15 | . 3 15 Tactical Retreats 4 | . 3 1 Traps | -11 -10 -10 ------- Run | Yrd Mat Sub Traps Triggered . | . . . Indirectly . | . . . Trap Hack Attempts . | . . . Triggered . | . . . Disarmed . | . . . Reprogrammed . | . . . Reused . | . . . Traps Extracted . | . . . Installed . | . . . Triggered . | . . . Machines | -11 -10 -10 ---------- Run | Yrd Mat Sub Machines Disabled . | . . . Max in Single Turn . | . . . Machines Repaired . | . . . Machines Dismantled . | . . . Machines Sabotaged . | . . . Overloaded Fab Kills . | . . . Hacking | -11 -10 -10 --------- Run | Yrd Mat Sub Machines Accessed 11 | . 11 . Terminals 8 | . 8 . Fabricators . | . . . Repair Stations 1 | . 1 . Recycling Units 2 | . 2 . Scanalyzers . | . . . Garrison Access . | . . . Total Hacks 30 | . 30 . Successful 21 | . 21 . Failed 9 | . 9 . Catastrophic 1 | . 1 . Database Lockouts . | . . . Manual 24 | . 24 . Terminals 23 | . 23 . Fabricators . | . . . Repair Stations 2 | . 2 . Recycling Units 5 | . 5 . Scanalyzers . | . . . Garrison Access . | . . . Terminal Hacks 10 | . 10 . Part Schematic 2 | . 2 . Robot Analysis 2 | . 2 . Prototype ID Bank 6 | . 6 . Fabricator Hacks . | . . . Repair Station Hacks 2 | . 2 . Scan Component 1 | . 1 . Repair 1 | . 1 . Recycling Unit Hacks 1 | . 1 . Report Inventory 1 | . 1 . Scanalyzer . | . . . Garrison Access Hacks . | . . . Unauthorized Hacks 8 | . 8 . Terminals 4 | . 4 . Track 1 | . 1 . Botnet 3 | . 3 . Fabricators . | . . . Repair Stations . | . . . Recycling Units 4 | . 4 . Reject 2 | . 2 . Recyclers 1 | . 1 . Mask 1 | . 1 . Scanalyzers . | . . . Garrison Access . | . . . Data Cores Recovered . | . . . Used . | . . . Hacking Detections 10 | . 10 . Full Trace Events . | . . . Feedback Events . | . . . Feedback Blocked . | . . . Robot Schematics Acquired . | . . . Robots Built . | . . . Authchips . | . . . Time . | . . . Total Robot Build Rating . | . . . Part Schematics Acquired 1 | . 1 . Parts Built . | . . . Authchips . | . . . Time . | . . . Total Part Build Rating . | . . . Part Studies Acquired . | . . . Parts Repaired 1 | . 1 . Time 26 | . 26 . Parts Recycled . | . . . Recycled Matter . | . . . Retrieved Matter . | . . . Retrieved Components . | . . . Parts Scanalyzed . | . . . Part Schematics Acquired . | . . . Parts Damaged . | . . . Bothacking | -11 -10 -10 ------------ Run | Yrd Mat Sub Used RIF Installer . | . . . Robots Hacked . | . . . Non-combat . | . . . Combat . | . . . Robot Hacks Applied . | . . . Relay Couplers Released . | . . . Fabnet Peak Effective % . | . . . Robots Rewired . | . . . Allies Hacked . | . . . Hacks Repelled . | . . . Allies | -11 -10 -10 -------- Run | Yrd Mat Sub Total Allies . | . . . Largest Group . | . . . Highest-Rated Group . | . . . Highest-Rated Ally . | . . . Total Orders . | . . . Ally Attacks . | . . . Total Damage . | . . . Kills . | . . . Allies Corrupted . | . . . Allies Melted . | . . . Intel | -11 -10 -10 ------- Run | Yrd Mat Sub Active Infowar (turns) 2877 | 41 2779 57 Seismic 2877 | 41 2779 57 Robot Analysis Total 2 | . 2 . Derelict Logs Recovered . | . . . Drone Launches . | . . . Drone Recoveries . | . . . Exploration | -11 -10 -10 ------------- Run | Yrd Mat Sub Turns Passed 3206 | 159 2779 268 Spaces Moved 1260 | 81 1048 131 Core 79 | 39 . 40 Treads 1181 | 42 1048 91 Legs . | . . . Wheels . | . . . Hover . | . . . Flight . | . . . Fastest Speed 50 | 50 160 50 Average Speed 207 | 124 222 137 Slowest Speed 240 | 160 240 240 Overloaded Moves . | . . . Propulsion Burnouts . | . . . Robots Hopped . | . . . Potential Cave-ins . | . . . Cave-ins Triggered . | . . . Exploration Rate (%) 36 | 3 98 7 Regions Visited 2 Branch Regions 1 Pre-discovered Areas . | . . . Known Exits Taken . | . . . Unknown Exits Taken 2 | 1 1 . Scrap Searched . | . . . Spaces Dug 8 | . 8 . Terrain Destroyed 12 | . 12 . Melee . | . . . Projectile 12 | . 12 . AOE . | . . . Terrain Rammed . | . . . Walls Destroyed . | . . . Machines Disabled . | . . . Actions | -11 -10 -10 --------- Run | Yrd Mat Sub Total 1719 | 109 1416 194 Wait 304 | 4 287 13 Move 1258 | 80 1047 131 Hop . | . . . Pick Up 29 | 5 22 2 Fast Attach 12 | 7 1 4 Attach 3 | . 1 2 Detach 1 | . . 1 Swap 10 | . 10 . Drop 29 | . 10 19 Fire 64 | 13 35 16 Melee . | . . . Ram 1 | . . 1 Kick . | . . . Crush 8 | . 3 5 Escape Stasis . | . . . Rewire . | . . . Trap . | . . . Miscellaneous . | . . . Route ------- -11/Scrapyard -10/Materials (discovered 5 exits: [*Mat x3] / [*Min] / [*Sub]) -10/Subcaves History --------- Turn | Location | Event 9 | -11/Scrapyard | Discovered new exit (range 16) 160 | -11/Scrapyard | Entered Materials 285 | -10/Materials | Discovered new exit (range 13) 308 | -10/Materials | Build established: Mutant 660 | -10/Materials | Derelicts attacked the area 833 | -10/Materials | Discovered new exit (range 16) 1335 | -10/Materials | Discovered new exit (range 15) 1511 | -10/Materials | Discovered new exit (range 13) 1832 | -10/Materials | Discovered new exit (range 7) 2714 | -10/Materials | Repaired Lgt. Treads 2939 | -10/Materials | Entered Subcaves 2940 | -10/Subcaves | Approached by a straggling Scientist 3073 | -10/Subcaves | A swath of the cavern ceiling suddenly collapsed 3104 | -10/Subcaves | Ambushed by swarm of Subdwellers 3105 | -10/Subcaves | Ambushed by Subdwellers from Twisted Machinery 3105 | -10/Subcaves | Ambushed by Subdwellers from Twisted Machinery 3105 | -10/Subcaves | Ambushed by Subdwellers from Twisted Machinery 3105 | -10/Subcaves | Ambushed by Subdwellers from Twisted Machinery 3105 | -10/Subcaves | Ambushed by Subdwellers from Twisted Machinery 3105 | -10/Subcaves | Ambushed by Subdwellers from Twisted Machinery 3143 | -10/Subcaves | Core integrity fell below 50% 3170 | -10/Subcaves | Lost 4 parts (1p2n1u) 3202 | -10/Subcaves | Core integrity fell below 20% 3207 | -10/Subcaves | Destroyed by OU-KTW(R) with Subdweller Machine Gun Last Messages --------------- 03124_ Lgt. Treads destroyed. 03134_ GU-GGT(R) destroyed. 03137_ Lgt. Treads destroyed. 03139_ Critical hit (Destroy). 03139_ Imp. Ion Engine destroyed. 03140_ Dropped Sub. Beam Cannon. 03140_ Dropped Beam Cannon. 03141_ GK-GRD(R) affixes Scrap Shield Fragment to Scrap Shield. 03141_ Slammed into 8R-HQX(R). 03159_ Subatomizers dissect the Imp. Heat Sink. 03162_ Acquired Imp. Treads. 03168_ Acquired Imp. Ion Engine. 03174_ Subatomizers dissect the Imp. Heat Sink, destroying it. 03175_ Acquired Imp. Treads. 03197_ 8R-HQX(R) destroyed. 03203_ GK-GRD(R) destroyed. 03206_ Imp. Treads destroyed. 03206_ Critical hit (Meltdown: +290). Map ----- +----------------------------------------------------+ | ???????????????????????## ??# #???????????????? | | ???????????????????????????## ####????????????? | | ??????????????????????????## ##???????????? | | ?????????????????????????## #???????????? | | ?????????????????????????# #???????????? | | ????????????????????????# ## #???????????? | | ????????????????? #??# #?# ##???????????? | | ?????????????????? ??## ##????????????? | | ???????????????? ???# ###???????????? | | ???????????????? ????# #???????????? | | ????????????????# ????# ####????????? | | ??????????????????# ?##### ##???????? | | ??????????????????# # # #???????? | | ??????????????????# ### #### ##??????? | | ?????????????????# ## ####??## #??????? | | ?????????????????## ??# #??????#####??????? | | ??????????????????# ????## ##?????????????????? | | ??????????????????????????# #?????????????????? | | ????????????????##???????#### ##????????????????? | | ????????????????# #### ## ##???????????????? | | ??????????????????# #???????????????? | | ???????????????????# #???????????????? | | ???????????????????## ##*### #???????????????? | | ????????????????????# ?##RR## #???????????????? | | ????????????????????# ??## ! R ##???????????????? | | ????????????????????#???#@ [ %!##???????????????? | | ???????????????????????##[| R! ##??????????????? | | ???????????????????????#=[[ * [ #??????????????? | | ???????????????????????####[=### #??????????????? | | ??????????????????????????####?## #??????????????? | | ?????????????????????????????????##??????????????? | | ?????????????????????????????????????????????????? | | ?????????????????????????????????????????????????? | | ?????????????????????????????????????????????????? | | ?????????????????????????????????????????????????? | | ?????????????????????????????????????????????????? | | ?????????????????????????????????????????????????? | | ?????????????????????????????????????????????????? | | ?????????????????????????????????????????????????? | | ?????????????????????????????????????????????????? | | ?????????????????????????????????????????????????? | | ?????????????????????????????????????????????????? | | ?????????????????????????????????????????????????? | | ?????????????????????????????????????????????????? | | ?????????????????????????????????????????????????? | | ?????????????????????????????????????????????????? | | ?????????????????????????????????????????????????? | | ?????????????????????????????????????????????????? | | ?????????????????????????????????????????????????? | | ?????????????????????????????????????????????????? | +----------------------------------------------------+ Best States ------------- Heat Dissipation 25 Energy Generation 14 Energy Capacity 265 Matter Stores 300 Matter Capacity 300 Sight Range 16 Terrain Scan Density 10 Armor Coverage 800 Evasion (%) 50 Recoil Reduction 2 Item Schematics ----------------- Hcp. Storage Unit | -10/Materials | Hacked Robot Schematics ------------------ None Fabricated ------------ Nothing Repaired ---------- Lgt. Treads | 90% | -10/Materials Studied --------- None Alien Tech Used ----------------- None Achievements -------------- Physics Hates This One Trick Challenges ------------ None Game ------ Seed BlanketSeismicFirepult Manual? 0 Play Time 00:26:12 Cumulative 388.4 hours Start 2025.10.25 @ 18:30:16 End 2025.10.25 @ 18:55:28 Sessions 1 Manual Loads 0 Difficulty Rogue Special Mode None Game No. 256 Rogue 256 Adventurer 0 Explorer 0 Win Type - Total 6 Types 4/0/1/0/0/0/0/1/0/0 Lore% 78 Gallery% 79 Achievement% 47 Wizard Run 0 Options --------- Layout 1 ASCII 0 Keyboard 0 Movement Numpad Keybinds 0 Fullscreen 1 Font 24/Smallcaps Map View 50x40 Zoom Use 0% Tactical HUD 1 Map Filters NONE Filters NONE Steam 1 RUN: f93ca455-bfcb-49b3-9b0f-9786bb41e412